[Event "FIDE Grand Swiss 2023"]
[Site "Villa Marina, Douglas, Isle of Man"]
[Date "2023.10.29"]
[Round "5.54"]
[White "Mendonca, Leon Luke"]
[Black "Parligras, Mircea-Emilian"]
[Result "1/2-1/2"]
[WhiteElo "2622"]
[BlackElo "2561"]
[EventDate "2023.10.25"]
[ECO "B90"]
[PlyCount "116"]
[BlackFideId "1204297"]
[TimeControl "40/100 + 20/50 + 15 + 30s/move"]
[WhiteFideId "35028561"]

1.e4 {[%clk 01:40:57] [%emt 00:00:02]} 1...c5 {[%clk 01:40:51] [%emt 00:00:09]} 
2.Nf3 {[%clk 01:41:21] [%emt 00:00:05]} 2...d6 {[%clk 01:41:17] [%emt 00:00:05]} 
3.d4 {[%clk 01:41:02] [%emt 00:00:49]} 3...cxd4 {[%clk 01:41:40] [%emt
00:00:07]} 4.Nxd4 {[%clk 01:41:27] [%emt 00:00:04]} 4...Nf6 {[%clk 01:42:05]
[%emt 00:00:05]} 5.Nc3 {[%clk 01:41:35] [%emt 00:00:23]} 5...a6 {[%clk 01:42:31]
[%emt 00:00:04]} 6.Bd3 {[%clk 01:40:19] [%emt 00:01:46]} 6...g6 {[%clk 01:42:28]
[%emt 00:00:33]} 7.f3 {[%clk 01:39:31] [%emt 00:01:18]} 7...Qb6 {[%clk 01:40:59]
[%emt 00:01:59]} 8.a3 {[%clk 01:36:32] [%emt 00:03:29]} 8...Nc6 {[%clk 01:41:06]
[%emt 00:00:22]} 9.Be3 {[%clk 01:32:00] [%emt 00:05:03]} 9...e5 {[%clk 01:41:27]
[%emt 00:00:09]} 10.Nf5 {[%clk 01:31:59] [%emt 00:00:31]} 10...Qd8 {[%clk
01:41:43] [%emt 00:00:14]} 11.Ng3 {[%clk 01:31:15] [%emt 00:01:14]} 11...Bg7 
{[%clk 01:41:10] [%emt 00:01:03]} 12.Bc4 {[%clk 01:23:10] [%emt 00:08:35]} 
12...Be6 {[%clk 01:16:44] [%emt 00:24:56]} 13.Nd5 {[%clk 01:20:19] [%emt
00:03:20]} 13...Rc8 {[%clk 01:13:26] [%emt 00:03:49]} 14.O-O {[%clk 01:14:47]
[%emt 00:06:02]} 14...O-O {[%clk 01:12:18] [%emt 00:01:39]} 15.Rf2 {[%clk
01:08:53] [%emt 00:06:24]} 15...Ne7 {[%clk 01:07:19] [%emt 00:05:29]} 16.Nxf6+ 
{[%clk 01:04:33] [%emt 00:04:49]} 16...Bxf6 {[%clk 01:07:45] [%emt 00:00:03]} 
17.Bxe6 {[%clk 01:04:53] [%emt 00:00:10]} 17...fxe6 {[%clk 01:08:09] [%emt
00:00:07]} 18.Rd2 {[%clk 01:04:16] [%emt 00:01:07]} 18...d5 {[%clk 01:00:43]
[%emt 00:07:56]} 19.exd5 {[%clk 00:59:51] [%emt 00:04:55]} 19...exd5 {[%clk
01:01:00] [%emt 00:00:13]} 20.Ne4 {[%clk 00:50:44] [%emt 00:09:38]} 20...Bg7 
{[%clk 00:55:59] [%emt 00:05:31]} 21.c3 {[%clk 00:42:51] [%emt 00:08:23]} 
21...Qc7 {[%clk 00:53:03] [%emt 00:03:26]} 22.Qb3 {[%clk 00:40:59] [%emt
00:02:21]} 22...Qc4 {[%clk 00:35:54] [%emt 00:17:40]} 23.Qxc4 {[%clk 00:41:11]
[%emt 00:00:17]} 23...Rxc4 {[%clk 00:36:19] [%emt 00:00:05]} 24.Nd6 {[%clk
00:28:42] [%emt 00:13:00]} 24...Rc7 {[%clk 00:34:34] [%emt 00:02:14]} 25.Bg5 
{[%clk 00:29:03] [%emt 00:00:09]} 25...d4 {[%clk 00:30:29] [%emt 00:04:36]} 
26.Bxe7 {[%clk 00:24:54] [%emt 00:04:38]} 26...Rxe7 {[%clk 00:30:53] [%emt
00:00:06]} 27.Ne4 {[%clk 00:22:29] [%emt 00:02:55]} 27...Bh6 {[%clk 00:29:50]
[%emt 00:01:33]} 28.Rdd1 {[%clk 00:18:39] [%emt 00:04:20]} 28...Be3+ {[%clk
00:29:35] [%emt 00:00:45]} 29.Kf1 {[%clk 00:19:07] [%emt 00:00:02]} 29...b5 
{[%clk 00:18:44] [%emt 00:11:21]} 30.Ke2 {[%clk 00:18:12] [%emt 00:01:25]} 
30...a5 {[%clk 00:18:49] [%emt 00:00:26]} 31.a4 {[%clk 00:10:59] [%emt
00:07:44]} 31...Rb8 {[%clk 00:13:53] [%emt 00:05:25]} 32.Rdb1 {[%clk 00:10:58]
[%emt 00:00:31]} 32...bxa4 {[%clk 00:08:10] [%emt 00:06:13]} 33.Rxa4 {[%clk
00:11:27] [%emt 00:00:01]} 33...Reb7 {[%clk 00:07:59] [%emt 00:00:41]} 34.b4 
{[%clk 00:02:03] [%emt 00:09:54]} 34...Bh6 {[%clk 00:07:53] [%emt 00:00:35]} 
35.cxd4 {[%clk 00:00:54] [%emt 00:01:40]} 35...exd4 {[%clk 00:07:44] [%emt
00:00:39]} 36.Rxa5 {[%clk 00:01:23] [%emt 00:00:01]} 36...Rxb4 {[%clk 00:06:25]
[%emt 00:01:49]} 37.Rxb4 {[%clk 00:01:53]} 37...Rxb4 {[%clk 00:06:50] [%emt
00:00:04]} 38.Ra8+ {[%clk 00:02:07] [%emt 00:00:17]} 38...Kf7 {[%clk 00:03:27]
[%emt 00:03:53]} 39.Ra7+ {[%clk 00:02:35] [%emt 00:00:02]} 39...Ke6 {[%clk
00:03:43] [%emt 00:00:13]} 40.Rxh7 {[%clk 00:02:23] [%emt 00:00:42]} 40...Rb2+ 
{[%clk 00:02:12] [%emt 00:02:01]} 41.Kd3 {[%clk 00:01:02] [%emt 00:01:51]} 
41...Be3 {[%clk 00:02:35] [%emt 00:00:06]} 42.g3 {[%clk 00:49:32] [%emt
00:02:02]} 42...Ra2 {[%clk 00:42:52] [%emt 00:10:12]} 43.Rg7 {[%clk 00:41:47]
[%emt 00:08:16]} 43...g5 {[%clk 00:41:46] [%emt 00:01:35]} 44.Rb7 {[%clk
00:24:51] [%emt 00:17:26]} 44...Rxh2 {[%clk 00:33:34] [%emt 00:08:42]} 45.Rb5 
{[%clk 00:24:27] [%emt 00:00:55]} 45...g4 {[%clk 00:27:32] [%emt 00:06:31]} 
46.f4 {[%clk 00:23:32] [%emt 00:01:24]} 46...Ra2 {[%clk 00:25:38] [%emt
00:02:24]} 47.f5+ {[%clk 00:22:06] [%emt 00:01:57]} 47...Kd7 {[%clk 00:22:34]
[%emt 00:03:34]} 48.Re5 {[%clk 00:16:45] [%emt 00:05:51]} 48...Kc6 {[%clk
00:14:38] [%emt 00:08:26]} 49.Rc5+ {[%clk 00:07:55] [%emt 00:09:20]} 49...Kd7 
{[%clk 00:10:27] [%emt 00:04:40]} 50.Re5 {[%clk 00:08:24] [%emt 00:00:02]} 
50...Kc6 {[%clk 00:10:52] [%emt 00:00:05]} 51.Re6+ {[%clk 00:07:30] [%emt
00:01:24]} 51...Kb5 {[%clk 00:10:24] [%emt 00:00:58]} 52.Nd6+ {[%clk 00:07:19]
[%emt 00:00:42]} 52...Kc5 {[%clk 00:09:45] [%emt 00:01:07]} 53.Ne4+ {[%clk
00:06:04] [%emt 00:01:46]} 53...Kb5 {[%clk 00:09:47] [%emt 00:00:28]} 54.f6 
{[%clk 00:05:25] [%emt 00:01:09]} 54...Ra3+ {[%clk 00:09:10] [%emt 00:01:07]} 
55.Kc2 {[%clk 00:05:50] [%emt 00:00:06]} 55...d3+ {[%clk 00:08:57] [%emt
00:00:42]} 56.Kb2 {[%clk 00:06:19] [%emt 00:00:01]} 56...Kb4 {[%clk 00:09:16]
[%emt 00:00:12]} 57.Rd6 {[%clk 00:04:57] [%emt 00:01:51]} 57...Rb3+ {[%clk
00:09:12] [%emt 00:00:34]} 58.Ka2 {[%clk 00:05:22] [%emt 00:00:05]} 58...Ra3+ 
{[%clk 00:09:23] [%emt 00:00:19]} 1/2-1/2

[Event "FIDE Grand Swiss 2023"]
[Site "Villa Marina, Douglas, Isle of Man"]
[Date "2023.10.29"]
[Round "5.55"]
[White "Greenfeld, Alon"]
[Black "Bachmann, Axel"]
[Result "0-1"]
[WhiteElo "2455"]
[BlackElo "2604"]
[EventDate "2023.10.25"]
[ECO "A17"]
[PlyCount "82"]
[BlackFideId "3700488"]
[TimeControl "40/100 + 20/50 + 15 + 30s/move"]
[WhiteFideId "2800039"]

1.Nf3 {[%clk 01:39:00] [%emt 00:01:58]} 1...Nf6 {[%clk 01:40:12] [%emt
00:00:49]} 2.c4 {[%clk 01:38:25] [%emt 00:01:05]} 2...e6 {[%clk 01:40:34] [%emt
00:00:08]} 3.Nc3 {[%clk 01:36:24] [%emt 00:02:31]} 3...Bb4 {[%clk 01:37:38]
[%emt 00:03:26]} 4.g4 {[%clk 01:32:04] [%emt 00:04:49]} 4...Bxc3 {[%clk
01:24:35] [%emt 00:13:33]} 5.dxc3 {[%clk 01:30:30] [%emt 00:02:04]} 5...d6 
{[%clk 01:23:52] [%emt 00:01:14]} 6.g5 {[%clk 01:23:28] [%emt 00:07:31]} 
6...Nfd7 {[%clk 01:23:22] [%emt 00:01:00]} 7.Bg2 {[%clk 01:17:06] [%emt
00:06:52]} 7...e5 {[%clk 01:21:45] [%emt 00:02:08]} 8.Be3 {[%clk 01:13:21] [%emt
00:04:15]} 8...Nc6 {[%clk 01:18:38] [%emt 00:03:36]} 9.Qc2 {[%clk 01:03:47]
[%emt 00:10:04]} 9...Nb6 {[%clk 01:13:03] [%emt 00:06:06]} 10.b3 {[%clk
01:03:58] [%emt 00:00:19]} 10...Be6 {[%clk 01:06:07] [%emt 00:07:25]} 11.O-O-O 
{[%clk 00:55:21] [%emt 00:09:07]} 11...Qe7 {[%clk 01:03:40] [%emt 00:02:58]} 
12.Nh4 {[%clk 00:45:24] [%emt 00:10:27]} 12...g6 {[%clk 01:03:37] [%emt
00:00:33]} 13.Rd2 {[%clk 00:34:43] [%emt 00:11:11]} 13...O-O-O {[%clk 00:47:28]
[%emt 00:16:39]} 14.Rhd1 {[%clk 00:30:04] [%emt 00:05:08]} 14...h6 {[%clk
00:37:18] [%emt 00:10:40]} 15.Nf3 {[%clk 00:27:36] [%emt 00:02:58]} 15...Bf5 
{[%clk 00:36:40] [%emt 00:01:09]} 16.Qb2 {[%clk 00:28:01] [%emt 00:00:05]} 
16...hxg5 {[%clk 00:25:05] [%emt 00:12:05]} 17.Bxg5 {[%clk 00:25:48] [%emt
00:02:42]} 17...f6 {[%clk 00:25:30] [%emt 00:00:05]} 18.Be3 {[%clk 00:26:11]
[%emt 00:00:08]} 18...e4 {[%clk 00:24:19] [%emt 00:01:41]} 19.Nd4 {[%clk
00:24:38] [%emt 00:02:02]} 19...Nxd4 {[%clk 00:23:23] [%emt 00:01:27]} 20.Rxd4 
{[%clk 00:24:58] [%emt 00:00:09]} 20...Rxh2 {[%clk 00:19:32] [%emt 00:04:22]} 
21.c5 {[%clk 00:18:21] [%emt 00:07:06]} 21...Rxg2 {[%clk 00:19:41] [%emt
00:00:21]} 22.cxb6 {[%clk 00:18:43] [%emt 00:00:09]} 22...axb6 {[%clk 00:20:08]
[%emt 00:00:03]} 23.Qa3 {[%clk 00:18:13] [%emt 00:01:00]} 23...c5 {[%clk
00:19:55] [%emt 00:00:42]} 24.R4d2 {[%clk 00:13:30] [%emt 00:05:12]} 24...g5 
{[%clk 00:12:28] [%emt 00:07:58]} 25.b4 {[%clk 00:12:42] [%emt 00:01:18]} 
25...Rd7 {[%clk 00:11:08] [%emt 00:01:50]} 26.Rh1 {[%clk 00:04:59] [%emt
00:08:12]} 26...Kc7 {[%clk 00:11:27] [%emt 00:00:12]} 27.Rh8 {[%clk 00:04:56]
[%emt 00:00:33]} 27...Qe5 {[%clk 00:11:46] [%emt 00:00:11]} 28.Kb2 {[%clk
00:03:50] [%emt 00:01:37]} 28...Rh7 {[%clk 00:10:40] [%emt 00:01:36]} 29.Rf8 
{[%clk 00:03:38] [%emt 00:00:41]} 29...Bd7 {[%clk 00:06:15] [%emt 00:04:55]} 
30.Qa8 {[%clk 00:03:11] [%emt 00:00:57]} 30...Kc6 {[%clk 00:04:52] [%emt
00:01:53]} 31.b5+ {[%clk 00:02:29] [%emt 00:01:12]} 31...Kxb5 {[%clk 00:05:18]
[%emt 00:00:04]} 32.Qxb7 {[%clk 00:02:37] [%emt 00:00:22]} 32...Kc4 {[%clk
00:05:17] [%emt 00:00:31]} 33.Qa6+ {[%clk 00:02:19] [%emt 00:00:48]} 33...b5 
{[%clk 00:05:27] [%emt 00:00:20]} 34.Bd4 {[%clk 00:01:11] [%emt 00:01:38]} 
34...Qf4 {[%clk 00:05:24] [%emt 00:00:33]} 35.Rc2 {[%clk 00:00:54] [%emt
00:00:47]} 35...cxd4 {[%clk 00:05:24] [%emt 00:00:29]} 36.cxd4+ {[%clk 00:01:11]
[%emt 00:00:14]} 36...Kd5 {[%clk 00:05:36] [%emt 00:00:18]} 37.e3 {[%clk
00:01:04] [%emt 00:00:36]} 37...Qf3 {[%clk 00:04:22] [%emt 00:01:44]} 38.Qa3 
{[%clk 00:00:44] [%emt 00:00:51]} 38...Ke6 {[%clk 00:04:04] [%emt 00:00:48]} 
39.d5+ {[%clk 00:00:58] [%emt 00:00:16]} 39...Kf5 {[%clk 00:04:18] [%emt
00:00:15]} 40.Qxd6 {[%clk 00:01:17] [%emt 00:00:12]} 40...Kg6 {[%clk 00:04:28]
[%emt 00:00:20]} 41.Rg8+ {[%clk 00:47:44] [%emt 00:04:03]} 41...Kh5 {[%clk
00:54:32] [%emt 00:00:27]} 0-1

[Event "FIDE Grand Swiss 2023"]
[Site "Villa Marina, Douglas, Isle of Man"]
[Date "2023.10.29"]
[Round "5.56"]
[White "Iturrizaga Bonelli, Eduardo"]
[Black "Kolbus, Dietmar"]
[Result "1-0"]
[WhiteElo "2615"]
[BlackElo "2225"]
[EventDate "2023.10.25"]
[ECO "D35"]
[PlyCount "65"]
[BlackFideId "4610628"]
[TimeControl "40/100 + 20/50 + 15 + 30s/move"]
[WhiteFideId "3901211"]

1.c4 {[%clk 01:40:58]} 1...e6 {[%clk 01:40:49] [%emt 00:00:11]} 2.Nc3 {[%clk
01:41:12] [%emt 00:00:16]} 2...d5 {[%clk 01:41:12] [%emt 00:00:07]} 3.d4 {[%clk
01:41:37] [%emt 00:00:05]} 3...Nf6 {[%clk 01:41:28] [%emt 00:00:14]} 4.cxd5 
{[%clk 01:42:02] [%emt 00:00:06]} 4...exd5 {[%clk 01:40:08] [%emt 00:01:49]} 
5.Bg5 {[%clk 01:42:25] [%emt 00:00:06]} 5...Be7 {[%clk 01:39:42] [%emt
00:00:57]} 6.e3 {[%clk 01:42:49] [%emt 00:00:06]} 6...c6 {[%clk 01:39:30] [%emt
00:00:41]} 7.Bd3 {[%clk 01:43:13] [%emt 00:00:06]} 7...Nbd7 {[%clk 01:39:39]
[%emt 00:00:21]} 8.Nge2 {[%clk 01:43:29] [%emt 00:00:15]} 8...Nf8 {[%clk
01:38:56] [%emt 00:01:13]} 9.f3 {[%clk 01:43:14] [%emt 00:00:46]} 9...Ne6 
{[%clk 01:36:54] [%emt 00:02:31]} 10.Bh4 {[%clk 01:43:36] [%emt 00:00:07]} 
10...Ne4 {[%clk 01:29:25] [%emt 00:08:00]} 11.Bxe7 {[%clk 01:41:59] [%emt
00:02:07]} 11...Nxc3 {[%clk 01:29:48] [%emt 00:00:07]} 12.bxc3 {[%clk 01:41:20]
[%emt 00:01:09]} 12...Qxe7 {[%clk 01:30:12] [%emt 00:00:06]} 13.O-O {[%clk
01:41:46] [%emt 00:00:04]} 13...O-O {[%clk 01:24:51] [%emt 00:05:50]} 14.e4 
{[%clk 01:42:08] [%emt 00:00:09]} 14...g6 {[%clk 01:19:35] [%emt 00:05:46]} 
15.Qd2 {[%clk 01:41:42] [%emt 00:00:54]} 15...f6 {[%clk 01:15:10] [%emt
00:04:56]} 16.Rae1 {[%emt 00:01:52]} 16...Qd6 {[%clk 01:14:55]} 17.Qh6 {[%clk
01:40:03] [%emt 00:01:33]} 17...Rf7 {[%clk 01:07:27] [%emt 00:07:58]} 18.h4 
{[%clk 01:39:41] [%emt 00:00:52]} 18...Qf8 {[%clk 01:05:29] [%emt 00:02:27]} 
19.Qd2 {[%clk 01:39:32] [%emt 00:00:40]} 19...Kh8 {[%clk 00:57:33] [%emt
00:08:26]} 20.c4 {[%clk 00:47:59] [%emt 00:52:03]} 20...dxc4 {[%clk 00:43:47]
[%emt 00:14:16]} 21.Bxc4 {[%clk 00:48:09] [%emt 00:00:20]} 21...Rg7 {[%clk
00:44:00] [%emt 00:00:16]} 22.f4 {[%clk 00:41:24] [%emt 00:07:15]} 22...Nc7 
{[%clk 00:43:49] [%emt 00:00:41]} 23.Ng3 {[%clk 00:40:28] [%emt 00:01:26]} 
23...Bg4 {[%clk 00:43:44] [%emt 00:00:36]} 24.f5 {[%clk 00:40:03] [%emt
00:00:55]} 24...Qd6 {[%clk 00:32:22] [%emt 00:11:52]} 25.e5 {[%clk 00:36:59]
[%emt 00:03:33]} 25...fxe5 {[%clk 00:31:56] [%emt 00:00:57]} 26.Ne4 {[%clk
00:22:25] [%emt 00:15:04]} 26...Qxd4+ {[%clk 00:30:53] [%emt 00:01:33]} 27.Qxd4 
{[%clk 00:22:52] [%emt 00:00:03]} 27...exd4 {[%clk 00:31:15] [%emt 00:00:09]} 
28.f6 {[%clk 00:23:20] [%emt 00:00:01]} 28...Rd7 {[%clk 00:25:55] [%emt
00:05:49]} 29.f7 {[%clk 00:23:16] [%emt 00:00:35]} 29...Bf5 {[%clk 00:10:28]
[%emt 00:15:56]} 30.Nf6 {[%clk 00:22:09] [%emt 00:01:38]} 30...Rd6 {[%clk
00:08:10] [%emt 00:02:48]} 31.Ne8 {[%clk 00:22:07] [%emt 00:00:32]} 31...Rad8 
{[%emt 00:00:25]} 32.Nxd6 Rxd6 33.Re8+ {[%clk 00:22:30] [%emt 00:00:01]} 1-0

[Event "FIDE Grand Swiss 2023"]
[Site "Villa Marina, Douglas, Isle of Man"]
[Date "2023.10.29"]
[Round "5.57"]
[White "Wu, Li"]
[Black "Adhiban, B."]
[Result "0-1"]
[WhiteElo "2303"]
[BlackElo "2551"]
[EventDate "2023.10.25"]
[ECO "A40"]
[PlyCount "62"]
[BlackFideId "5018471"]
[TimeControl "40/100 + 20/50 + 15 + 30s/move"]
[WhiteFideId "411086"]

1.d4 {[%clk 01:40:53] [%emt 00:00:06]} 1...e6 {[%clk 01:40:54] [%emt 00:00:08]} 
2.c4 {[%clk 01:41:03] [%emt 00:00:19]} 2...b6 {[%clk 01:41:16] [%emt 00:00:08]} 
3.e4 {[%clk 01:38:12] [%emt 00:03:20]} 3...Bb7 {[%clk 01:41:33] [%emt 00:00:13]} 
4.Bd3 {[%clk 01:38:36] [%emt 00:00:06]} 4...Nc6 {[%clk 01:37:08] [%emt
00:04:54]} 5.Nf3 {[%clk 01:37:17] [%emt 00:01:49]} 5...Nb4 {[%clk 01:37:12]
[%emt 00:00:27]} 6.Nc3 {[%clk 01:34:52] [%emt 00:02:55]} 6...Nxd3+ {[%clk
01:37:30] [%emt 00:00:12]} 7.Qxd3 {[%clk 01:35:18] [%emt 00:00:04]} 7...Bb4 
{[%clk 01:37:54] [%emt 00:00:06]} 8.d5 {[%clk 01:33:19] [%emt 00:02:29]} 
8...Ne7 {[%clk 01:34:38] [%emt 00:03:45]} 9.Bd2 {[%clk 01:20:41] [%emt
00:13:09]} 9...O-O {[%clk 01:29:52] [%emt 00:05:16]} 10.a3 {[%clk 01:20:00]
[%emt 00:01:11]} 10...Bxc3 {[%clk 01:29:00] [%emt 00:01:22]} 11.Bxc3 {[%clk
01:20:26] [%emt 00:00:04]} 11...d6 {[%clk 01:15:32] [%emt 00:13:58]} 12.dxe6 
{[%clk 01:02:21] [%emt 00:18:35]} 12...Ng6 {[%clk 00:56:45] [%emt 00:19:16]} 
13.exf7+ {[%clk 00:47:15] [%emt 00:15:36]} 13...Rxf7 {[%clk 00:57:13] [%emt
00:00:03]} 14.O-O-O {[%clk 00:45:57] [%emt 00:01:48]} 14...Nf4 {[%clk 00:47:00]
[%emt 00:10:43]} 15.Qc2 {[%clk 00:46:23] [%emt 00:00:04]} 15...Qe7 {[%clk
00:41:21] [%emt 00:06:09]} 16.e5 {[%clk 00:31:46] [%emt 00:15:07]} 16...Nxg2 
{[%clk 00:38:07] [%emt 00:03:44]} 17.exd6 {[%clk 00:31:58] [%emt 00:00:18]} 
17...cxd6 {[%clk 00:38:27] [%emt 00:00:09]} 18.Nd4 {[%clk 00:30:07] [%emt
00:02:21]} 18...Raf8 {[%clk 00:36:46] [%emt 00:02:11]} 19.Rhg1 {[%clk 00:22:47]
[%emt 00:07:51]} 19...Rxf2 {[%emt 00:02:46]} 20.Qd3 {[%clk 00:23:15]} 20...Be4 
{[%clk 00:25:07] [%emt 00:09:55]} 21.Qg3 {[%clk 00:23:27] [%emt 00:00:17]} 
21...h5 {[%clk 00:21:03] [%emt 00:04:35]} 22.Rd2 {[%clk 00:14:10] [%emt
00:09:47]} 22...Rf1+ {[%clk 00:15:43] [%emt 00:05:50]} 23.Rxf1 {[%clk 00:11:20]
[%emt 00:03:20]} 23...Rxf1+ {[%clk 00:16:08] [%emt 00:00:05]} 24.Rd1 {[%clk
00:11:47] [%emt 00:00:02]} 24...Qf7 {[%clk 00:12:30] [%emt 00:04:08]} 25.Ne6 
{[%clk 00:05:43] [%emt 00:06:35]} 25...Rf2 {[%clk 00:10:29] [%emt 00:02:31]} 
26.Rd2 {[%clk 00:05:30] [%emt 00:00:43]} 26...Rf1+ {[%clk 00:09:18] [%emt
00:01:41]} 27.Rd1 {[%clk 00:05:58] [%emt 00:00:01]} 27...Rf2 {[%clk 00:07:23]
[%emt 00:02:25]} 28.Rd2 {[%clk 00:06:25] [%emt 00:00:04]} 28...Rf3 {[%clk
00:06:38] [%emt 00:01:15]} 29.Qxg7+ {[%clk 00:01:48] [%emt 00:05:07]} 29...Qxg7 
{[%clk 00:07:06] [%emt 00:00:01]} 30.Bxg7 {[%clk 00:00:59] [%emt 00:01:19]} 
30...Rf1+ {[%clk 00:05:39] [%emt 00:01:57]} 31.Rd1 {[%clk 00:01:25] [%emt
00:00:05]} 31...Rxd1+ {[%clk 00:06:03] [%emt 00:00:06]} 0-1

[Event "FIDE Grand Swiss 2023"]
[Site "Villa Marina, Douglas, Isle of Man"]
[Date "2023.10.30"]
[Round "6.1"]
[White "Esipenko, Andrey"]
[Black "Nakamura, Hikaru"]
[Result "1/2-1/2"]
[WhiteElo "2683"]
[BlackElo "2780"]
[EventDate "2023.10.25"]
[ECO "B27"]
[PlyCount "54"]
[BlackFideId "2016192"]
[TimeControl "40/100 + 20/50 + 15 + 30s/move"]
[WhiteFideId "24175439"]
[ePGN "0.1;DGT LiveChess/2.2.5"]

1.e4 {[%clk 01:40:50] [%emt 00:00:09]} 1...c5 {[%clk 01:40:54] [%emt 00:00:06]} 
2.Nf3 {[%clk 01:40:58] [%emt 00:00:21]} 2...g6 {[%clk 01:41:20] [%emt 00:00:05]} 
3.c3 {[%clk 01:38:20] [%emt 00:03:08]} 3...d5 {[%clk 01:41:25] [%emt 00:00:25]} 
4.e5 {[%clk 01:38:46] [%emt 00:00:04]} 4...a6 {[%clk 01:41:50] [%emt 00:00:06]} 
5.d4 {[%clk 01:25:34] [%emt 00:13:41]} 5...Nc6 {[%clk 01:41:51] [%emt 00:00:29]} 
6.h3 {[%clk 01:20:56] [%emt 00:05:08]} 6...Bg7 {[%clk 01:41:21] [%emt 00:00:59]} 
7.Be2 {[%clk 01:19:21] [%emt 00:02:05]} 7...f6 {[%clk 01:38:20] [%emt 00:03:31]} 
8.exf6 {[%clk 01:19:32] [%emt 00:00:19]} 8...Nxf6 {[%clk 01:38:48] [%emt
00:00:02]} 9.O-O {[%clk 01:18:28] [%emt 00:01:35]} 9...O-O {[%clk 01:32:22]
[%emt 00:06:57]} 10.Be3 {[%clk 01:11:31] [%emt 00:07:26]} 10...cxd4 {[%clk
01:14:29] [%emt 00:18:23]} 11.cxd4 {[%clk 01:11:54] [%emt 00:00:07]} 11...Nh5 
{[%clk 01:14:56] [%emt 00:00:03]} 12.Re1 {[%clk 01:05:50] [%emt 00:06:34]} 
12...Nf4 {[%clk 01:10:31] [%emt 00:04:55]} 13.Bf1 {[%clk 01:04:15] [%emt
00:02:05]} 13...g5 {[%clk 01:02:05] [%emt 00:08:56]} 14.Ne5 {[%clk 00:37:24]
[%emt 00:27:21]} 14...Nxe5 {[%clk 00:59:10] [%emt 00:03:24]} 15.dxe5 {[%clk
00:37:48] [%emt 00:00:07]} 15...Bxe5 {[%clk 00:59:25] [%emt 00:00:15]} 16.Nc3 
{[%clk 00:38:00] [%emt 00:00:17]} 16...e6 {[%clk 00:53:09] [%emt 00:06:46]} 
17.Bc5 {[%clk 00:34:41] [%emt 00:03:48]} 17...Bd6 {[%clk 00:49:30] [%emt
00:04:10]} 18.Bd4 {[%clk 00:35:05] [%emt 00:00:06]} 18...Ng6 {[%clk 00:43:00]
[%emt 00:07:00]} 19.Na4 {[%clk 00:31:58] [%emt 00:03:37]} 19...Bc7 {[%clk
00:37:24] [%emt 00:06:06]} 20.Bd3 {[%clk 00:28:37] [%emt 00:03:51]} 20...e5 
{[%clk 00:33:39] [%emt 00:04:16]} 21.Bxg6 {[%clk 00:28:36] [%emt 00:00:30]} 
21...exd4 {[%clk 00:34:01] [%emt 00:00:07]} 22.Qh5 {[%clk 00:28:51] [%emt
00:00:15]} 22...hxg6 {[%clk 00:34:10] [%emt 00:00:22]} 23.Qxg6+ {[%clk 00:29:15]
[%emt 00:00:06]} 23...Kh8 {[%clk 00:34:39]} 24.Qh6+ {[%clk 00:29:00] [%emt
00:00:44]} 24...Kg8 {[%clk 00:35:06] [%emt 00:00:03]} 25.Qg6+ {[%clk 00:29:19]
[%emt 00:00:11]} 25...Kh8 {[%clk 00:35:33] [%emt 00:00:03]} 26.Qh6+ {[%clk
00:28:42] [%emt 00:01:06]} 26...Kg8 {[%clk 00:35:58] [%emt 00:00:06]} 27.Qg6+ 
{[%clk 00:29:07] [%emt 00:00:05]} 27...Kh8 {[%emt 00:00:09]} 1/2-1/2